bitfinex/quotes_ETHUSD_20240819
["timestamp","ask_amount","ask_price","bid_price","bid_amount"]
[1724092462268,3.83584,2607.0,2606.4,3.83662]
[1724092462269,7.67178,2607.0,2606.5,3.0]
[1724092462469,3.836,2606.9,2606.5,3.0]
[1724092462629,3.93603276,2607.1,2606.5,3.0]
[1724092462630,7.77181276,2607.1,2606.5,3.0]
[1724092462830,3.83635,2606.7,2606.1,6.19885]
[1724092463131,7.67219,2606.9,2606.1,6.19885]
[1724092463330,7.67219,2606.9,2606.3,3.83677]
[1724092464039,3.83612,2606.8,2606.3,3.83677]
[1724092464259,2.14353276,2607.0,2606.4,3.0]
[1724092464462,3.8364,2606.7,2606.2,3.0]
[1724092464885,3.8364,2606.7,2606.2,6.83698]
[1724092465087,3.8364,2606.7,2606.2,3.0]
[1724092466489,3.83679,2606.4,2605.8,6.29087]
[1724092466793,3.83679,2606.4,2605.8,3.83747]
[1724092466794,3.83692,2606.3,2605.8,3.83747]
[1724092467005,4.38692,2606.3,2605.8,3.83747]
[1724092467989,4.38692,2606.3,2605.9,3.0]
[1724092468283,3.83657,2606.5,2605.9,3.683747]
[1724092468667,0.55,2606.4,2605.9,7.521097]
[1724092468969,4.38671,2606.4,2605.9,7.521097]
[1724092469174,4.38671,2606.4,2605.9,3.683747]
[1724092469375,2.3062,2606.6,2606.2,3.83692]
[1724092469578,3.83647,2606.6,2606.0,4.5892717]
[1724092469776,3.83647,2606.6,2605.9,3.0]
[1724092469777,6.23946,2606.5,2605.9,3.0]
[1724092470093,2.9529,2606.5,2605.9,3.0]
[1724092470284,3.83692,2606.3,2605.8,6.83748]
[1724092470480,3.83716,2606.1,2605.8,4.067513]
[1724092470682,2.9529,2606.5,2605.8,4.067513]
[1724092470683,3.83694,2606.3,2605.8,3.0]
[1724092470889,3.83694,2606.3,2605.8,6.83758]
[1724092471602,7.67361,2606.4,2605.9,3.83743]
[1724092471822,7.67361,2606.4,2605.8,3.0]
[1724092471823,0.55,2606.3,2605.8,3.0]
[1724092472023,3.83701,2606.2,2605.8,3.0]
[1724092472222,3.83701,2606.2,2605.5,3.83793]
[1724092472223,3.83731,2606.0,2605.5,3.83793]
[1724092472424,6.31601,2606.0,2605.6,3.0]
[1724092472614,0.55,2605.9,2605.5,3.83803]
[1724092472922,0.55,2605.9,2605.4,3.83816]
[1724092473123,4.38751,2605.9,2605.4,3.83816]
[1724092473444,3.83759,2605.8,2605.3,4.457431]
[1724092473655,3.83759,2605.8,2605.4,3.0]
[1724092474299,3.8376,2605.8,2605.4,3.0]
[1724092474815,4.38745,2605.9,2605.4,6.83817]
[1724092475344,3.8371,2606.2,2605.5,3.83795]
[1724092475563,3.8371,2606.2,2605.7,3.83774]
[1724092475564,0.55,2606.1,2605.7,3.83774]
[1724092476757,4.38721,2606.1,2605.6,3.83787]
[1724092477170,0.55,2606.1,2605.7,3.83773]
[1724092477869,4.3872,2606.1,2605.6,5.25448721]
[1724092478076,7.34,2606.4,2605.9,3.83742]
[1724092478277,7.34,2606.4,2606.1,3.83713]
[1724092478767,6.22648,2606.6,2606.0,4.221022]
[1724092479343,2.39,2606.6,2606.1,3.83708]
[1724092479551,2.39,2606.6,2606.1,3.83703]
[1724092479928,2.39,2606.6,2605.9,10.11043]
[1724092480218,3.83658,2606.5,2606.0,3.83722]
[1724092480426,3.83686,2606.3,2605.8,3.83758]
[1724092480629,3.83658,2606.5,2605.9,6.83736]
[1724092480828,0.55,2606.4,2606.0,3.83728]
[1724092481243,4.38671,2606.4,2605.9,3.0]
[1724092481415,4.38671,2606.4,2605.9,6.83743]
[1724092481611,0.55,2606.4,2605.9,6.83736]
[1724092481823,0.55,2606.4,2606.0,4.66578527]
[1724092482160,3.83612,2606.8,2606.3,3.83682]
[1724092482460,13.66377,2606.9,2606.4,3.83657]
[1724092482461,7.34,2606.9,2606.4,3.83657]
[1724092482957,7.34,2606.9,2606.5,3.8365]
[1724092483168,7.34,2606.9,2606.3,3.83685]
[1724092483372,2.3376,2607.1,2606.2,0.46657453]
[1724092483672,2.3376,2607.1,2606.6,3.83633]
[1724092483874,6.1734,2607.1,2606.6,3.83633]
[1724092484032,3.83597,2606.9,2606.4,3.83661]
[1724092484233,3.83597,2606.9,2606.5,3.0]
[1724092486195,3.83641,2606.6,2606.0,4.66576527]
[1724092486361,3.83641,2606.6,2606.2,3.83699]
[1724092486362,6.20381,2606.6,2606.2,3.83699]
[1724092486533,6.20381,2606.6,2606.3,3.0]
[1724092486952,3.83671,2606.4,2605.9,3.83734]
[1724092487149,3.83671,2606.4,2606.0,6.83728]
[1724092487492,4.38656,2606.5,2606.0,6.83728]
[1724092488253,4.38656,2606.5,2606.0,10.67456]
[1724092488453,0.55,2606.5,2606.0,7.904736]
[1724092488690,3.83642,2606.6,2606.0,10.260906]
[1724092489387,3.83642,2606.6,2606.1,3.83705]
[1724092489598,3.83642,2606.6,2606.2,3.0]
[1724092489945,3.83656,2606.5,2606.2,3.0]
[1724092490297,3.83656,2606.5,2606.0,3.83715]
[1724092490298,0.8056357,2606.6,2606.1,3.0]
[1724092490608,3.83643,2606.6,2606.2,3.83699]
[1724092490962,3.83643,2606.6,2606.1,6.83713]
[1724092491161,7.67292,2606.6,2606.1,6.83713]
[1724092491479,3.83643,2606.6,2606.1,6.83713]
[1724092492319,3.83685,2606.4,2606.1,3.0]
[1724092492447,3.83685,2606.4,2605.8,6.83751]
[1724092492448,3.83697,2606.3,2605.8,6.83751]
[1724092492648,0.55,2606.3,2605.9,3.83744]
[1724092492994,0.55,2606.3,2606.0,3.0]
[1724092493345,3.83652,2606.6,2606.0,3.683737]
[1724092493545,3.83642,2606.6,2606.1,6.83708]
[1724092493811,6.14148,2606.7,2606.2,3.83693]
[1724092494113,0.55,2606.6,2606.2,3.83693]
[1724092494561,6.14148,2606.7,2606.2,3.83693]
[1724092494562,6.14149,2606.7,2606.3,3.83685]
[1724092495663,3.83629,2606.7,2606.3,3.83685]
[1724092496449,3.83612,2606.8,2606.3,3.83685]
[1724092496649,0.55,2606.7,2606.3,3.83685]
[1724092496890,0.55,2606.7,2606.3,5.2378291]
[1724092497893,0.55,2606.7,2606.3,5.2377291]
[1724092498096,0.55,2606.7,2606.3,1.4009791]
[1724092498398,7.34,2606.9,2606.3,1.4009791]
[1724092498600,7.34,2606.9,2606.6,3.83631]
[1724092499443,7.34,2606.9,2606.4,3.83665]
[1724092499649,11.17601,2606.9,2606.4,7.67328]
[1724092499893,2.354,2606.8,2606.4,3.83663]
[1724092500198,3.83642,2606.6,2606.2,3.83688]
[1724092500348,3.83642,2606.6,2606.3,3.0]
[1724092500557,6.19022,2606.8,2606.3,6.83684]
[1724092500558,3.83627,2606.7,2606.3,6.83684]
[1724092500752,6.19013,2606.8,2606.3,3.0]
[1724092500948,0.55,2606.7,2606.2,6.83691]
[1724092501144,0.55,2606.7,2606.2,7.904303]
[1724092501597,0.55,2606.7,2606.3,3.83683]
[1724092501806,0.55,2606.7,2606.4,3.0]
[1724092502025,0.55,2606.7,2606.4,6.8367]
[1724092503015,7.34,2606.9,2606.6,3.83641]
[1724092503220,7.34,2606.9,2606.5,4.52016]
[1724092503517,3.83619,2606.8,2606.4,3.0]
[1724092503880,3.83619,2606.8,2606.4,6.83668]
[1724092504079,13.50428,2606.9,2606.4,6.83668]
[1724092505631,3.83619,2606.8,2606.4,3.0]
[1724092505833,3.83634,2606.7,2606.1,6.83702]
[1724092505993,3.83644,2606.6,2606.2,6.83699]
[1724092506391,3.83628,2606.7,2606.2,6.83699]
[1724092506737,3.83628,2606.7,2606.3,3.83685]
[1724092507109,7.67267,2606.7,2606.2,6.83699]
[1724092507426,3.83628,2606.7,2606.2,10.67392]
[1724092507627,3.83628,2606.7,2606.3,3.83684]
[1724092507795,7.67266,2606.7,2606.2,6.83699]
[1724092508144,15.09788276,2606.9,2606.2,4.067417]
[1724092508329,15.09788276,2606.9,2606.4,3.83667]
[1724092508330,4.38613,2606.8,2606.4,3.83667]
[1724092508845,0.55,2606.8,2606.4,3.83664]
[1724092508998,7.3773671,2606.9,2606.5,4.220194]
[1724092511041,11.2133371,2606.9,2606.5,4.220194]
[1724092511339,3.83626,2606.7,2606.2,10.67383]
[1724092511553,8.47007276,2606.8,2606.2,6.83691]
[1724092511753,6.87654,2606.8,2606.3,3.83675]
[1724092512441,6.9139071,2606.8,2606.4,3.83669]
[1724092512894,6.9139071,2606.8,2606.3,3.83684]
[1724092513295,6.9139071,2606.8,2606.2,13.10513]
[1724092513542,3.83633,2606.7,2606.2,6.83691]
[1724092513746,3.83642,2606.6,2606.2,6.83691]
[1724092514336,3.83642,2606.6,2606.2,3.0]
[1724092514538,3.83642,2606.6,2606.0,3.8372]
[1724092514539,3.83658,2606.5,2606.0,3.8372]
[1724092514833,3.83658,2606.5,2606.1,3.0]
[1724092515522,0.0373671,2606.5,2606.1,6.83707]
[1724092515690,3.8739471,2606.5,2606.1,6.83707]
[1724092516318,3.83694,2606.3,2606.1,3.0]
[1724092516512,3.83694,2606.3,2605.8,3.0]
[1724092516513,6.17814,2606.3,2605.8,3.0]
[1724092516734,2.3412,2606.3,2605.9,3.83743]
[1724092516988,2.3412,2606.3,2606.0,3.0]
[1724092517136,3.50577199,2606.3,2606.0,3.0]
[1724092517337,3.83715,2606.1,2605.6,6.83782]
[1724092517575,4.38709,2606.2,2605.6,6.83782]
[1724092517576,3.8373,2606.0,2605.6,6.83782]
[1724092517949,4.38709,2606.2,2605.7,3.83772]
[1724092518136,4.38709,2606.2,2605.8,3.0]
[1724092518540,7.3773671,2606.4,2606.0,3.83721]
[1724092518837,7.3773671,2606.4,2605.9,6.23261]
[1724092518838,7.3773671,2606.4,2606.1,3.83713]
[1724092519185,7.3773671,2606.4,2606.1,7.67421]
[1724092519351,7.3773671,2606.4,2606.1,3.83708]
[1724092519558,7.3773671,2606.4,2605.9,6.23255]
[1724092519753,7.3773671,2606.4,2605.9,7.2241822]
[1724092520075,11.2141371,2606.4,2606.0,3.83729]
[1724092520468,7.3773671,2606.4,2606.1,3.83713]
[1724092520785,7.3773671,2606.4,2606.2,3.83694]
[1724092520935,0.0373671,2606.4,2606.2,3.83694]
[1724092521138,0.0373671,2606.4,2606.3,0.767407]
[1724092522941,0.0373671,2606.4,2606.2,3.83694]
[1724092523387,0.0373671,2606.4,2606.3,3.83685]
[1724092523564,0.0373671,2606.4,2606.3,13.1281]
[1724092524592,0.0373671,2606.4,2606.3,20.8018]
[1724092524791,0.0373671,2606.4,2606.3,20.72324431]
[1724092524992,0.0373671,2606.4,2606.3,23.38063776]
[1724092525292,0.0373671,2606.4,2606.3,28.02297926]
[1724092525595,0.0373671,2606.4,2606.3,27.21748776]
[1724092526095,0.0373671,2606.4,2606.3,23.38063776]
[1724092527079,0.0373671,2606.4,2606.3,21.3792531]
[1724092527393,0.0373671,2606.4,2606.3,23.38061315]
[1724092527558,0.0373671,2606.4,2606.3,21.3792531]
[1724092528093,0.0373671,2606.4,2606.3,23.38051839]
[1724092528604,0.0373671,2606.4,2606.3,27.21736839]
[1724092528770,0.0373671,2606.4,2606.3,28.02285989]
[1724092529101,3.93233276,2607.6,2607.3,3.83537]
[1724092529438,1.59353276,2607.6,2607.3,3.8353]
[1724092529627,1.59353276,2607.7,2607.3,7.67061]
[1724092529825,1.59353276,2607.7,2607.0,2.3892]
[1724092530125,1.59353276,2607.7,2607.3,3.83529]
[1724092530472,8.3301687,2607.8,2607.3,3.83529]
[1724092530473,7.92378276,2607.8,2607.3,3.83529]
[1724092531607,3.83488,2607.7,2607.2,3.83551]
[1724092531816,3.83496,2607.6,2607.4,0.10412465]
[1724092532032,3.83496,2607.6,2607.2,3.83551]
[1724092532326,3.83496,2607.6,2607.5,0.10428743]
[1724092533021,3.83488,2607.7,2607.2,3.83551]
[1724092533193,7.66977,2607.7,2607.5,0.10428743]
[1724092533401,7.66977,2607.7,2607.2,3.83551]
[1724092533583,3.83488,2607.7,2607.6,0.10428743]
[1724092533923,6.33026,2607.8,2607.3,3.83537]
[1724092534223,6.33026,2607.8,2607.4,0.10428743]
[1724092534619,2.4956,2607.8,2607.4,3.93950743]
[1724092534926,11.17458,2607.9,2607.5,3.83502]
[1724092535293,7.34,2607.9,2607.6,0.10423108]
[1724092535625,7.34,2607.9,2607.7,3.83472]
[1724092536151,7.34,2607.9,2607.8,0.10413091]
[1724092536816,7.34,2607.9,2607.6,4.71397728]
[1724092537016,7.34,2607.9,2607.8,0.10413091]
[1724092537229,7.34,2607.9,2607.6,4.71397728]
[1724092537575,7.34,2607.9,2607.8,0.10413091]
[1724092537858,7.34,2607.9,2607.7,0.95895352]
[1724092538163,7.82216276,2608.4,2607.9,3.83448]
[1724092538361,7.82216276,2608.4,2608.0,3.83435]
[1724092538362,6.22863,2608.4,2608.0,3.83435]
[1724092538665,7.34,2608.5,2608.1,3.83418]
[1724092538833,7.34,2608.5,2608.0,3.93785476]
[1724092538834,7.34,2608.5,2608.0,3.93777476]
[1724092539012,7.34,2608.5,2608.0,3.83427]
[1724092539374,7.34,2608.5,2608.1,0.10350476]
[1724092539517,7.34,2608.5,2608.2,3.83405]
[1724092539863,7.34,2608.5,2608.3,0.10343591]
[1724092540218,11.17363,2608.5,2608.3,0.10343591]
[1724092540416,11.17363,2608.5,2608.0,3.83435]
[1724092540712,11.17363,2608.5,2608.4,0.10343591]
[1724092540713,15.351468,2608.5,2608.4,0.10343591]
[1724092540920,15.351468,2608.5,2608.0,3.83435]
[1724092541116,12.911468,2608.5,2608.0,3.83435]
[1724092541335,7.34,2608.5,2608.1,0.10343591]
[1724092541560,11.17368,2608.5,2608.1,0.10343591]
[1724092541768,2.2867,2608.2,2608.1,0.10343591]
[1724092541950,6.12076,2608.2,2608.1,0.10343591]
[1724092542156,7.171273,2608.2,2607.8,3.0]
[1724092542470,6.1208,2608.2,2608.1,0.10343591]
[1724092542620,3.83421,2608.1,2607.8,3.0]
[1724092542818,7.6685,2608.1,2607.8,3.0]
[1724092543010,3.83421,2608.1,2607.7,3.0]
[1724092543251,4.829703,2608.1,2607.5,3.83497]
[1724092543595,3.83457,2607.9,2607.4,3.83523]
[1724092543757,6.28347,2607.8,2607.3,3.83527]
[1724092544411,3.83482,2607.7,2607.1,6.11388]
[1724092544556,6.2834,2607.8,2607.3,3.83537]
[1724092544742,3.8348,2607.7,2607.1,9.94944]
[1724092544939,7.66968,2607.7,2607.1,6.11386]
[1724092545247,3.8348,2607.7,2607.2,3.0]
[1724092546662,3.83495,2607.6,2607.2,3.0]
[1724092549122,3.83517,2607.5,2606.9,9.98766]
[1724092549291,3.83517,2607.5,2607.0,6.83582]
[1724092550033,4.846788,2607.6,2607.1,3.83565]
[1724092550181,3.83495,2607.6,2607.2,3.83553]
[1724092550723,6.28343,2607.8,2607.2,7.67099]
[1724092550929,3.83446,2608.0,2607.4,3.83513]
[1724092550930,10.07781,2608.0,2607.4,3.83513]
[1724092551232,0.55,2607.9,2607.4,7.67027]
[1724092551434,0.55,2607.9,2607.4,3.83513]
[1724092551435,4.38452,2607.9,2607.4,3.83513]
[1724092551779,3.83465,2607.8,2607.3,6.21075]
[1724092552336,3.8348,2607.7,2607.3,2.3754]
[1724092552541,3.8348,2607.7,2607.3,3.0]
[1724092552882,3.83465,2607.8,2607.4,0.10360495]
[1724092553083,7.66939,2607.8,2607.4,0.10360495]
[1724092553440,3.83465,2607.8,2607.4,0.10360495]
[1724092553582,3.83465,2607.8,2607.4,3.93882495]
[1724092553940,4.3845,2607.9,2607.5,3.83506]
[1724092554434,2.4089,2608.0,2607.6,3.93847495]
[1724092554582,0.55,2607.9,2607.6,3.93847495]
[1724092555481,7.34,2608.1,2607.9,3.83449]
[1724092555679,14.5171,2608.3,2607.9,3.83449]
[1724092555680,2.3571,2608.3,2607.9,4.601408]
[1724092555879,2.3571,2608.3,2607.8,3.83458]
[1724092555880,3.83406,2608.2,2607.8,3.83458]
[1724092556186,2.3571,2608.3,2607.7,3.83467]
[1724092556387,6.19104,2608.3,2607.9,3.83448]
[1724092556884,0.55,2608.2,2608.0,0.10360495]
[1724092557287,0.55,2608.2,2607.9,3.83449]
[1724092557488,0.55,2608.2,2608.1,0.10360495]
[1724092557696,0.55,2608.2,2607.8,3.8346]
[1724092557930,0.55,2608.2,2608.1,0.10360495]
[1724092558237,0.55,2608.2,2607.8,3.8346]
[1724092558448,0.55,2608.2,2608.1,0.10360495]
[1724092558942,0.55,2608.2,2607.9,3.83448]
[1724092559145,0.55,2608.2,2608.1,0.10360495]
[1724092559299,0.55,2608.2,2607.9,3.83448]
[1724092559501,4.38406,2608.2,2608.1,0.10360495]
[1724092559704,3.83421,2608.1,2607.6,3.0]
[1724092559916,4.38437,2608.0,2607.6,6.83488]
[1724092560154,6.23617,2607.9,2607.6,3.0]
[1724092560362,3.83531,2607.4,2606.8,3.8361]
[1724092560537,4.218891,2607.4,2606.8,3.83604]
[1724092560848,4.38538,2607.3,2606.7,6.12517]
[1724092561550,4.38538,2607.3,2606.7,6.12515]
[1724092561704,4.38538,2607.3,2606.8,3.83604]
[1724092561905,0.55,2607.3,2606.9,3.83596]
[1724092562132,9.6079,2607.6,2606.9,3.83585]
[1724092562133,0.55,2607.4,2606.9,3.83585]
[1724092562330,0.55,2607.5,2607.1,3.83566]
[1724092562856,0.55,2607.5,2607.1,7.67123]
[1724092563009,0.55,2607.5,2607.1,4.602693]
[1724092564058,7.34,2607.6,2607.2,5.4975]
[1724092564241,7.34,2607.6,2607.2,9.33295]
[1724092564416,7.34,2607.6,2607.4,3.83516]
[1724092564611,11.17427,2608.1,2607.4,3.83515]
[1724092564942,3.83452,2607.9,2607.4,3.83515]
[1724092565704,3.83443,2608.0,2607.4,3.83515]
[1724092565924,0.55,2607.9,2607.4,5.25295873]
[1724092566125,11.17427,2608.1,2607.4,9.08811873]
[1724092566126,4.38441,2608.0,2607.4,9.08811873]
[1724092566324,4.38441,2608.0,2607.4,5.25295873]
[1724092566554,0.55,2608.0,2607.5,3.83505]
[1724092566785,7.34,2608.1,2607.6,3.83492]
[1724092566961,7.34,2608.1,2607.8,7.66911]
[1724092567284,7.34,2608.1,2607.8,3.83455]
[1724092567726,7.34,2608.1,2607.9,0.0963776]
[1724092567927,11.17422,2608.1,2607.9,0.0963776]
[1724092568235,7.34,2608.1,2607.7,3.0]
[1724092568569,11.17355,2608.6,2608.1,3.8342]
[1724092568774,3.83355,2608.6,2608.1,3.8342]
[1724092569062,3.83355,2608.6,2608.2,0.0963776]
[1724092569363,3.83335,2608.7,2608.2,0.0963776]
[1724092569364,3.83364,2608.5,2608.2,0.0963776]
[1724092569872,0.55,2608.4,2608.0,6.83435]
[1724092570042,0.55,2608.4,2608.0,3.0]
[1724092570043,3.83394,2608.3,2608.0,3.0]
[1724092570227,0.55,2608.2,2607.9,3.0]
[1724092570644,0.55,2608.2,2608.0,3.83434]
[1724092570826,0.55,2608.4,2608.1,3.83409]
[1724092571027,0.55,2608.5,2608.1,3.83409]
[1724092571467,4.38364,2608.5,2608.0,3.83434]
[1724092571626,3.83378,2608.4,2608.0,3.83434]
[1724092571824,0.55,2608.3,2608.0,3.83434]
[1724092572129,0.55,2608.3,2608.0,5.25164527]
[1724092572330,0.55,2608.4,2608.0,9.08589527]
[1724092573367,0.55,2608.4,2608.0,5.25161527]
[1724092573793,4.38383,2608.4,2607.9,6.83446]
[1724092574104,0.55,2608.4,2607.9,3.0]
[1724092574327,0.55,2608.4,2607.8,2.3455]
[1724092574328,3.8341,2608.2,2607.8,3.0]
[1724092574469,2.2659,2608.0,2607.2,2.3419]
[1724092574792,2.2659,2608.0,2606.9,1.20823725]
[1724092574793,5.8429279,2607.8,2606.9,2.3419]
[1724092574998,1.59353276,2607.7,2607.3,3.83527]
[1724092575318,1.59353276,2607.7,2607.5,3.83507]
[1724092575319,0.55,2607.7,2607.5,3.83507]
[1724092575511,0.55,2607.7,2607.4,4.31114115]
[1724092575714,2.14353276,2607.9,2607.4,4.218747]
[1724092575884,2.14353276,2607.9,2607.5,0.09239415]
[1724092576209,2.14353276,2607.9,2607.5,0.90703526]
[1724092576367,0.55,2607.9,2607.5,0.90703526]
[1724092576562,5.97806276,2607.9,2607.5,0.09239415]
[1724092577236,5.97806276,2607.9,2607.3,7.67053]
[1724092577440,1.59353276,2607.8,2607.6,0.09261947]
[1724092577644,0.55,2607.7,2607.6,0.09261947]
[1724092577947,5.97806276,2607.9,2607.7,0.09261947]
[1724092577948,1.59353276,2607.8,2607.7,0.09261947]
[1724092578248,3.83534,2607.4,2606.7,3.83616]
[1724092578389,0.55,2607.3,2606.6,2.3916]
[1724092578709,5.44307365,2607.2,2606.7,0.09171423]
[1724092578888,0.55,2607.1,2606.7,0.09171423]
[1724092579089,0.55,2607.1,2606.8,3.83608]
[1724092579357,1.60753365,2607.5,2607.1,3.83565]
[1724092579498,1.60753365,2607.5,2607.1,6.22714]
[1724092579499,0.55,2607.4,2607.1,6.22714]
[1724092579705,6.24596753,2607.9,2607.2,0.622714]
[1724092579706,5.44218365,2607.8,2607.2,0.622714]
[1724092579913,5.44218365,2607.8,2607.2,0.71470371]
[1724092579914,3.83479,2607.7,2607.2,0.71470371]
[1724092580129,3.83479,2607.7,2607.2,0.09198971]
[1724092580130,5.44258365,2607.6,2607.2,0.09198971]
[1724092580334,0.55,2607.5,2607.2,0.09198971]
[1724092580690,0.55,2607.5,2607.1,3.83564]
[1724092580932,0.55,2607.5,2607.3,0.09252175]
[1724092581132,0.55,2607.6,2607.2,0.683564]
[1724092581337,0.55,2607.6,2607.4,0.09252175]
[1724092581551,0.55,2607.6,2606.5,2.3577]
[1724092581552,3.83564,2607.2,2606.5,2.3577]
[1724092581749,1.60753365,2607.4,2606.5,2.3577]
[1724092581954,1.60753365,2607.4,2606.8,3.83602]
[1724092581955,0.55,2607.3,2606.8,3.83602]
[1724092582257,0.55,2607.3,2606.9,3.83596]
[1724092582639,7.76410365,2607.5,2606.9,3.83596]
[1724092582640,0.55,2607.4,2607.0,0.09252175]
[1724092583013,1.60753365,2607.5,2607.0,6.37842175]
[1724092583218,1.60753365,2607.7,2607.2,3.83542]
[1724092583412,1.60753365,2607.8,2607.1,0.63784218]
[1724092583631,2.00906705,2607.9,2607.1,0.63784218]
[1724092583632,1.60753365,2607.9,2607.5,3.83507]
[1724092583843,1.60753365,2608.0,2607.6,3.83493]
[1724092584152,1.60753365,2607.9,2607.4,3.8351]
[1724092584352,5.44189365,2608.0,2607.7,0.09252175]
[1724092584552,5.44189365,2608.0,2607.4,7.67026]
[1724092584553,1.60753365,2607.9,2607.4,7.67026]
[1724092584757,1.60753365,2607.9,2607.4,3.8351]
[1724092584918,5.44189365,2608.0,2607.5,0.09252175]
[1724092585315,5.44206365,2607.9,2607.5,0.09252175]
[1724092585518,5.44218365,2607.8,2607.5,0.09252175]
[1724092585725,3.83496,2607.6,2607.0,6.28589]
[1724092585956,3.83496,2607.6,2606.9,6.83586]
[1724092585957,3.83524,2607.4,2606.9,3.0]
[1724092586156,3.83524,2607.4,2606.7,6.21786]
[1724092586157,3.8356,2607.2,2606.7,6.21786]
[1724092586456,3.83538,2607.3,2606.7,10.05405]
[1724092586655,0.55,2607.2,2606.8,1.028982]
[1724092587458,0.55,2607.2,2606.8,4.028982]
[1724092587815,0.55,2607.2,2607.1,3.83567]
[1724092588017,8.31919183,2607.6,2607.2,3.83549]
[1724092588018,1.60753365,2607.6,2607.2,3.83549]
[1724092588240,8.94753365,2607.7,2607.3,3.83534]
[1724092588415,7.34,2607.7,2607.3,3.83534]
[1724092588627,11.17481,2607.7,2607.2,4.461499]
[1724092588830,3.83494,2607.6,2607.2,3.83553]
[1724092589026,8.94753365,2607.7,2607.2,3.83546]
[1724092589257,7.34,2607.7,2607.2,3.83544]
[1724092589634,11.17479,2607.7,2607.2,3.83544]
[1724092589849,0.55,2607.6,2607.2,3.83544]
[1724092590029,0.55,2607.6,2607.4,3.83522]
[1724092590251,1.60753365,2607.8,2607.5,3.83509]
[1724092590564,5.44198365,2608.0,2607.6,3.83494]
[1724092590731,1.60753365,2607.9,2607.6,0.767016]
[1724092590931,3.83451,2607.9,2607.4,7.67026]
[1724092591460,5.44204365,2607.9,2607.5,0.09224626]
[1724092591857,0.55,2607.8,2607.5,0.09224626]
[1724092592230,4.38467,2607.8,2607.5,0.09224626]
[1724092592858,2.4919,2607.7,2607.5,0.09224626]
[1724092593171,2.4919,2607.7,2607.1,3.83567]
[1724092593172,3.83494,2607.6,2607.1,3.83567]
[1724092593323,4.38494,2607.6,2607.2,4.00956]
[1724092593520,4.38494,2607.6,2607.2,7.84507]
[1724092593921,4.38494,2607.6,2607.2,4.00956]
[1724092594150,3.83511,2607.5,2607.1,3.0]
[1724092594345,0.55,2607.4,2607.1,3.0]
[1724092594847,4.38525,2607.4,2607.1,3.0]
[1724092595046,4.38525,2607.4,2606.8,4.865002]
[1724092595047,4.38525,2607.4,2606.9,3.8359]
[1724092595462,4.38525,2607.4,2606.9,7.6718]
[1724092595764,0.55,2607.4,2606.9,4.9505082]
[1724092595977,0.55,2607.4,2607.3,3.83538]
[1724092596163,0.55,2607.5,2607.3,3.83538]
[1724092596364,0.55,2607.6,2607.3,3.83538]
[1724092597155,0.55,2607.6,2607.3,4.602465]
[1724092597380,0.55,2607.6,2607.4,3.83521]
[1724092597546,7.34,2607.8,2607.4,3.83516]
[1724092597746,7.34,2607.8,2607.5,0.09213357]
[1724092598359,11.17468,2607.8,2607.5,0.09213357]
[1724092598573,6.24097,2607.7,2607.5,0.09213357]
[1724092598742,2.4061,2607.7,2607.5,0.09213357]
[1724092598942,0.55,2607.6,2607.4,3.83517]
[1724092599155,7.09,2607.8,2607.6,0.09213357]
[1724092599156,0.55,2607.7,2607.6,0.09213357]
[1724092599789,0.55,2607.7,2607.3,6.24187]
[1724092599958,0.55,2607.7,2607.6,0.09213357]
[1724092600158,0.55,2607.7,2607.3,6.24181]
[1724092600357,0.55,2607.7,2607.6,3.83494]
[1724092600558,0.55,2607.7,2607.5,3.83501]
[1724092600784,5.44189365,2608.0,2607.6,0.09220243]
[1724092600949,5.44189365,2608.0,2607.6,3.92714243]
[1724092601151,5.44189365,2608.0,2607.6,0.09220243]
[1724092601348,1.60753365,2607.9,2607.6,0.09220243]
[1724092601549,1.60753365,2607.9,2607.4,0.624181]
[1724092601798,1.60753365,2607.9,2607.7,0.09216487]
[1724092602099,4.38468,2607.8,2607.1,2.3064]
[1724092602249,4.38468,2607.8,2607.3,3.83529]
[1724092602453,8.21943,2607.8,2607.3,3.83529]
[1724092602767,4.38468,2607.8,2607.3,5.13301]
[1724092602995,9.82697365,2607.8,2607.3,5.13301]
[1724092603154,8.21944,2607.8,2607.3,5.13301]
[1724092603355,4.38468,2607.8,2607.3,5.13301]
[1724092603973,0.55,2607.8,2607.4,3.83521]
[1724092604290,0.55,2607.8,2607.4,4.732032]
[1724092604490,4.38465,2607.8,2607.4,4.732032]
[1724092604915,0.55,2607.8,2607.6,3.83487]
[1724092605074,1.60753365,2608.0,2607.8,3.83455]
[1724092605408,9.50006288,2608.3,2607.9,0.383455]
[1724092605409,3.83407,2608.2,2607.9,0.383455]
[1724092605582,3.83407,2608.2,2607.8,3.83456]
[1724092605761,5.44160365,2608.2,2607.8,3.83456]
[1724092605960,1.60753365,2608.3,2607.9,3.83449]
[1724092606186,4.48198573,2608.4,2607.5,5.4473]
[1724092606187,1.60753365,2608.4,2607.6,2.4432]
[1724092606402,1.60753365,2608.5,2608.2,3.83405]
[1724092606602,15.21119573,2608.7,2608.2,3.83405]
[1724092606603,1.60753365,2608.6,2608.2,3.83405]
[1724092606763,15.21119573,2608.7,2608.2,3.83398]
[1724092606764,14.81034365,2608.7,2608.2,3.83398]
[1724092606963,14.81034365,2608.7,2608.2,3.83404]
[1724092607286,18.64381365,2608.7,2608.3,0.47534353]
[1724092607490,14.81034365,2608.7,2608.3,0.47534353]